[Event "KNSB Bekerfinale 2022-2023"]
[Site "Utrecht, Netherlands"]
[Date "2023.05.18"]
[Round "2.6"]
[White "ten Hertog, Hugo"]
[Black "Lahaye, Rick"]
[Result "0-1"]
[TimeControl "100 minutes + increment 10 seconds"]
[WhiteTitle "GM"]
[BlackTitle "IM"]
[WhiteFideId "1026356"]
[BlackFideId "1007092"]
[WhiteElo "2526"]
[BlackElo "2427"]

1. e4 {[%clk 01:40:17]} {[%emt 00:00:02]} c5 {[%clk 01:40:12]} {[%emt
00:00:08]} 2. Nc3 {[%clk 01:40:22]} {[%emt 00:00:06]} a6 {[%clk 01:40:10]}
{[%emt 00:00:12]} 3. d4 {[%clk 01:40:26]} {[%emt 00:00:05]} cxd4 {[%clk
01:39:12]} {[%emt 00:01:08]} 4. Qxd4 {[%clk 01:40:32]} {[%emt 00:00:04]} Nc6
{[%clk 01:36:14]} {[%emt 00:03:08]} 5. Qd2 {[%clk 01:40:06]} {[%emt 00:00:36]}
d6 {[%clk 01:29:40]} {[%emt 00:06:44]} 6. b3 {[%clk 01:39:27]} {[%emt
00:00:48]} Nf6 {[%clk 01:23:23]} {[%emt 00:06:27]} 7. Bb2 {[%clk 01:34:39]}
{[%emt 00:04:59]} e6 {[%clk 01:16:59]} {[%emt 00:06:34]} 8. O-O-O {[%clk
01:33:39]} {[%emt 00:01:09]} b5 {[%clk 01:16:32]} {[%emt 00:00:37]} 9. f3
{[%clk 01:31:40]} {[%emt 00:02:09]} h5 {[%clk 01:15:10]} {[%emt 00:01:32]} 10.
Kb1 {[%clk 01:15:33]} {[%emt 00:16:17]} Ra7 {[%clk 01:06:48]} {[%emt 00:08:32]}
11. Nh3 {[%clk 01:03:28]} {[%emt 00:12:15]} Rd7 {[%clk 01:05:47]} {[%emt
00:01:11]} 12. Bd3 {[%clk 01:02:34]} {[%emt 00:01:03]} Bb7 {[%clk 01:04:40]}
{[%emt 00:01:18]} 13. Rhe1 {[%clk 00:54:42]} {[%emt 00:08:02]} Be7 {[%clk
00:58:46]} {[%emt 00:06:03]} 14. f4 {[%clk 00:49:03]} {[%emt 00:05:49]} Nb4
{[%clk 00:44:04]} {[%emt 00:14:53]} 15. Be2 {[%clk 00:27:46]} {[%emt 00:21:27]}
d5 {[%clk 00:38:38]} {[%emt 00:05:36]} 16. exd5 {[%clk 00:18:58]} {[%emt
00:08:58]} Nbxd5 {[%clk 00:37:34]} {[%emt 00:01:14]} 17. Nxd5 {[%clk 00:17:35]}
{[%emt 00:01:32]} Bxd5 {[%clk 00:37:01]} {[%emt 00:00:43]} 18. Bd3 {[%clk
00:15:43]} {[%emt 00:02:02]} Qa8 {[%clk 00:28:45]} {[%emt 00:08:27]} 19. Ng5
{[%clk 00:14:56]} {[%emt 00:00:56]} O-O {[%clk 00:26:34]} {[%emt 00:02:21]} 20.
Qf2 {[%clk 00:09:13]} {[%emt 00:05:53]} g6 {[%clk 00:17:38]} {[%emt 00:09:06]}
21. Qg3 {[%clk 00:07:30]} {[%emt 00:01:52]} Bd8 {[%clk 00:10:18]} {[%emt
00:07:30]} 22. h3 {[%clk 00:05:01]} {[%emt 00:02:39]} Ne8 {[%clk 00:08:20]}
{[%emt 00:02:09]} 23. Nxe6 {[%clk 00:02:41]} {[%emt 00:02:30]} fxe6 {[%clk
00:08:20]} {[%emt 00:00:10]} 24. Rxe6 {[%clk 00:01:34]} {[%emt 00:01:16]} Be4
{[%clk 00:06:18]} {[%emt 00:02:11]} 25. Rxg6+ {[%clk 00:00:58]} {[%emt
00:00:46]} Kh7 {[%clk 00:06:25]} {[%emt 00:00:03]} 26. Rxa6 {[%clk 00:00:30]}
{[%emt 00:00:38]} Rxd3 {[%clk 00:06:18]} {[%emt 00:00:17]} 27. Rxd3 {[%clk
00:00:29]} {[%emt 00:00:10]} Qc8 {[%clk 00:04:46]} {[%emt 00:01:43]} 28. Ra7+
{[%clk 00:00:19]} {[%emt 00:00:20]} Bc7 {[%clk 00:04:33]} {[%emt 00:00:22]} 29.
Re3 {[%clk 00:00:13]} {[%emt 00:00:16]} Rxf4 {[%clk 00:04:05]} {[%emt
00:00:39]} 30. Rxc7+ {[%clk 00:00:12]} {[%emt 00:00:11]} Qxc7 {[%clk 00:04:08]}
{[%emt 00:00:07]} 31. Qe1 {[%clk 00:00:14]} {[%emt 00:00:07]} Qxc2+ {[%clk
00:03:38]} {[%emt 00:00:40]} 32. Ka1 {[%clk 00:00:23]} {[%emt 00:00:01]} Rf2
{[%clk 00:03:23]} {[%emt 00:00:25]} 33. Qc1 {[%clk 00:00:19]} {[%emt 00:00:14]}
Qxc1+ {[%clk 00:02:01]} {[%emt 00:01:32]} 34. Bxc1 {[%clk 00:00:28]} {[%emt
00:00:01]} Nf6 {[%clk 00:01:42]} {[%emt 00:00:29]} 35. g4 {[%clk 00:00:36]}
{[%emt 00:00:02]} hxg4 {[%clk 00:00:54]} {[%emt 00:00:59]} 36. hxg4 {[%clk
00:00:45]} {[%emt 00:00:01]} Bg6 {[%clk 00:00:59]} {[%emt 00:00:05]} 37. Re7+
{[%clk 00:00:34]} {[%emt 00:00:21]} Kg8 {[%clk 00:01:06]} {[%emt 00:00:03]} 38.
Re5 {[%clk 00:00:22]} {[%emt 00:00:22]} Bd3 {[%clk 00:00:53]} {[%emt 00:00:22]}
39. Be3 {[%clk 00:00:16]} {[%emt 00:00:16]} Rg2 {[%clk 00:00:41]} {[%emt
00:00:23]} 40. Bd4 {[%clk 00:00:12]} {[%emt 00:00:14]} Ne4 {[%clk 00:00:44]}
{[%emt 00:00:07]} 41. a4 {[%clk 00:00:12]} {[%emt 00:00:10]} b4 {[%clk
00:00:50]} {[%emt 00:00:04]} 42. Re8+ {[%clk 00:00:16]} {[%emt 00:00:06]} Kf7
{[%clk 00:00:57]} {[%emt 00:00:02]} 43. Rb8 {[%clk 00:00:25]} Nc3 {[%clk
00:00:54]} {[%emt 00:00:13]} 44. Rxb4 {[%clk 00:00:28]} {[%emt 00:00:07]} Ra2#
{[%emt 00:00:02]} 0-1

[Event "KNSB Bekerfinale 2022-2023"]
[Site "Utrecht, Netherlands"]
[Date "2023.05.18"]
[Round "2.7"]
[White "Kumar, Prajit Sai"]
[Black "Kerigan, Demre"]
[Result "0-1"]
[TimeControl "100 minutes + increment 10 seconds"]
[BlackTitle "IM"]
[WhiteFideId "1070207"]
[BlackFideId "6307841"]
[WhiteElo "2256"]
[BlackElo "2357"]

1. d4 {[%clk 01:39:12]} {[%emt 00:01:07]} d6 {[%clk 01:40:05]} {[%emt
00:00:15]} 2. Nf3 {[%clk 01:39:16]} {[%emt 00:00:06]} g6 {[%clk 01:40:03]}
{[%emt 00:00:13]} 3. e4 {[%clk 01:38:23]} {[%emt 00:01:02]} Nf6 {[%clk
01:39:59]} {[%emt 00:00:14]} 4. Bd3 {[%clk 01:38:25]} {[%emt 00:00:08]} Bg7
{[%clk 01:40:02]} {[%emt 00:00:07]} 5. c3 {[%clk 01:38:23]} {[%emt 00:00:11]}
O-O {[%clk 01:39:54]} {[%emt 00:00:18]} 6. O-O {[%clk 01:38:24]} {[%emt
00:00:09]} c5 {[%clk 01:39:35]} {[%emt 00:00:29]} 7. dxc5 {[%clk 01:37:18]}
{[%emt 00:01:16]} dxc5 {[%clk 01:39:37]} {[%emt 00:00:09]} 8. Bg5 {[%clk
01:36:57]} {[%emt 00:00:30]} Nc6 {[%clk 01:38:55]} {[%emt 00:00:52]} 9. Qc2
{[%clk 01:34:29]} {[%emt 00:02:38]} Qc7 {[%clk 01:36:42]} {[%emt 00:02:23]} 10.
Nbd2 {[%clk 01:33:15]} {[%emt 00:01:24]} h6 {[%clk 01:34:06]} {[%emt 00:02:47]}
11. Bh4 {[%clk 01:33:15]} {[%emt 00:00:09]} Nh5 {[%clk 01:34:08]} {[%emt
00:00:08]} 12. Rfe1 {[%clk 01:32:43]} {[%emt 00:00:42]} Bg4 {[%clk 01:32:51]}
{[%emt 00:01:27]} 13. a4 {[%clk 01:27:56]} {[%emt 00:04:57]} Rad8 {[%clk
01:28:16]} {[%emt 00:04:46]} 14. Be2 {[%clk 01:23:43]} {[%emt 00:04:23]} Qf4
{[%clk 01:19:46]} {[%emt 00:08:39]} 15. Bg3 {[%clk 01:21:43]} {[%emt 00:02:10]}
Nxg3 {[%clk 01:19:04]} {[%emt 00:00:52]} 16. hxg3 {[%clk 01:21:47]} {[%emt
00:00:06]} Qc7 {[%clk 01:16:12]} {[%emt 00:03:02]} 17. Nc4 {[%clk 01:21:34]}
{[%emt 00:00:23]} h5 {[%clk 01:13:03]} {[%emt 00:03:19]} 18. Ne3 {[%clk
01:18:53]} {[%emt 00:02:50]} e6 {[%clk 01:02:33]} {[%emt 00:10:40]} 19. Rad1
{[%clk 01:17:44]} {[%emt 00:01:19]} Qe7 {[%clk 00:43:30]} {[%emt 00:19:12]} 20.
Rxd8 {[%clk 01:10:07]} {[%emt 00:07:46]} Rxd8 {[%clk 00:42:25]} {[%emt
00:01:17]} 21. Nxg4 {[%clk 01:00:02]} {[%emt 00:10:15]} hxg4 {[%clk 00:42:28]}
{[%emt 00:00:06]} 22. Nh2 {[%clk 01:00:08]} {[%emt 00:00:04]} Qg5 {[%clk
00:29:48]} {[%emt 00:12:50]} 23. Bxg4 {[%clk 00:48:48]} {[%emt 00:11:30]} Rd2
{[%clk 00:20:25]} {[%emt 00:09:33]} 24. Qc1 {[%clk 00:46:54]} {[%emt 00:02:04]}
Qd8 {[%clk 00:18:42]} {[%emt 00:01:52]} 25. Nf1 {[%clk 00:45:26]} {[%emt
00:01:38]} Rd7 {[%clk 00:18:22]} {[%emt 00:00:29]} 26. Be2 {[%clk 00:41:28]}
{[%emt 00:04:08]} Ne5 {[%clk 00:14:20]} {[%emt 00:04:13]} 27. Qc2 {[%clk
00:37:47]} {[%emt 00:03:50]} c4 {[%clk 00:13:11]} {[%emt 00:01:18]} 28. Rd1
{[%clk 00:31:38]} {[%emt 00:06:19]} Rxd1 {[%clk 00:12:12]} {[%emt 00:01:10]} 29.
Bxd1 {[%clk 00:31:43]} {[%emt 00:00:05]} a6 {[%clk 00:10:43]} {[%emt 00:01:39]}
30. Qd2 {[%clk 00:24:08]} {[%emt 00:07:45]} Qc7 {[%clk 00:10:28]} {[%emt
00:00:25]} 31. Be2 {[%clk 00:22:43]} {[%emt 00:01:35]} b5 {[%clk 00:10:01]}
{[%emt 00:00:37]} 32. axb5 {[%clk 00:22:24]} {[%emt 00:00:29]} axb5 {[%clk
00:10:08]} {[%emt 00:00:02]} 33. Ne3 {[%clk 00:20:53]} {[%emt 00:01:41]} Bf8
{[%clk 00:09:32]} {[%emt 00:00:45]} 34. f4 {[%clk 00:17:00]} {[%emt 00:04:04]}
Nd7 {[%clk 00:08:50]} {[%emt 00:00:52]} 35. Ng4 {[%clk 00:15:35]} {[%emt
00:01:35]} Kg7 {[%clk 00:06:03]} {[%emt 00:02:57]} 36. Kh2 {[%clk 00:13:41]}
{[%emt 00:02:04]} f5 {[%clk 00:03:43]} {[%emt 00:02:30]} 37. Qd4+ {[%clk
00:11:54]} {[%emt 00:01:57]} Kf7 {[%clk 00:03:06]} {[%emt 00:00:47]} 38. exf5
{[%clk 00:09:57]} {[%emt 00:02:06]} gxf5 {[%clk 00:02:44]} {[%emt 00:00:32]} 39.
Ne3 {[%clk 00:07:34]} {[%emt 00:02:33]} Nf6 {[%clk 00:02:38]} {[%emt 00:00:15]}
40. Bf3 {[%clk 00:07:01]} {[%emt 00:00:42]} Bc5 {[%clk 00:02:32]} {[%emt
00:00:16]} 41. Qd2 {[%clk 00:07:07]} {[%emt 00:00:04]} Qa7 {[%clk 00:02:22]}
{[%emt 00:00:20]} 42. Nd1 {[%clk 00:05:34]} {[%emt 00:01:44]} Kg6 {[%clk
00:02:02]} {[%emt 00:00:31]} 43. g4 {[%clk 00:05:19]} {[%emt 00:00:24]} Qh7+
{[%clk 00:01:18]} {[%emt 00:00:53]} 44. Kg3 {[%clk 00:05:25]} {[%emt 00:00:05]}
Bg1 {[%clk 00:01:19]} {[%emt 00:00:08]} 45. gxf5+ {[%clk 00:04:27]} {[%emt
00:01:08]} exf5 {[%clk 00:01:28]} {[%emt 00:00:02]} 46. Bc6 {[%clk 00:04:06]}
{[%emt 00:00:32]} Qh2+ {[%clk 00:01:36]} {[%emt 00:00:02]} 47. Kf3 {[%clk
00:04:12]} {[%emt 00:00:03]} Qh5+ {[%clk 00:01:39]} {[%emt 00:00:07]} 0-1

[Event "KNSB Bekerfinale 2022-2023"]
[Site "Utrecht, Netherlands"]
[Date "2023.05.18"]
[Round "2.8"]
[White "Wemmers, Xander"]
[Black "Blokhuis, Jeroen"]
[Result "1-0"]
[TimeControl "100 minutes + increment 10 seconds"]
[WhiteTitle "IM"]
[BlackTitle "FM"]
[WhiteFideId "1004182"]
[BlackFideId "1005456"]
[WhiteElo "2350"]
[BlackElo "2311"]

1. d4 {[%clk 01:40:17]} {[%emt 00:00:02]} e6 {[%clk 01:40:02]} {[%emt
00:00:19]} 2. c4 {[%clk 01:40:13]} {[%emt 00:00:13]} b6 {[%clk 01:40:07]}
{[%emt 00:00:06]} 3. a3 {[%clk 01:39:47]} {[%emt 00:00:36]} Bb7 {[%clk
01:39:59]} {[%emt 00:00:18]} 4. Nc3 {[%clk 01:38:58]} {[%emt 00:00:59]} f5
{[%clk 01:39:43]} {[%emt 00:00:26]} 5. d5 {[%clk 01:38:33]} {[%emt 00:00:35]}
exd5 {[%clk 01:32:38]} {[%emt 00:07:15]} 6. cxd5 {[%clk 01:35:24]} {[%emt
00:03:19]} Nf6 {[%clk 01:31:17]} {[%emt 00:01:30]} 7. g3 {[%clk 01:32:29]}
{[%emt 00:03:05]} g6 {[%clk 01:29:25]} {[%emt 00:02:02]} 8. Bg2 {[%clk
01:31:08]} {[%emt 00:01:32]} Bg7 {[%clk 01:29:21]} {[%emt 00:00:14]} 9. Nf3
{[%clk 01:25:41]} {[%emt 00:05:36]} O-O {[%clk 01:28:32]} {[%emt 00:00:59]} 10.
O-O {[%clk 01:25:01]} {[%emt 00:00:50]} Na6 {[%clk 01:22:32]} {[%emt 00:06:11]}
11. Be3 {[%clk 01:19:29]} {[%emt 00:05:42]} h6 {[%clk 01:12:24]} {[%emt
00:10:19]} 12. Rc1 {[%clk 01:16:11]} {[%emt 00:03:28]} Kh7 {[%clk 01:10:20]}
{[%emt 00:02:14]} 13. b4 {[%clk 01:13:32]} {[%emt 00:02:48]} Qe7 {[%clk
01:04:53]} {[%emt 00:05:37]} 14. d6 {[%clk 01:12:18]} {[%emt 00:01:23]} cxd6
{[%clk 01:03:11]} {[%emt 00:01:52]} 15. Ng5+ {[%clk 01:11:58]} {[%emt
00:00:30]} hxg5 {[%clk 01:03:13]} {[%emt 00:00:08]} 16. Bxb7 {[%clk 01:12:04]}
{[%emt 00:00:05]} f4 {[%clk 00:39:44]} {[%emt 00:23:37]} 17. Bd4 {[%clk
01:02:47]} {[%emt 00:09:27]} Nc7 {[%clk 00:30:04]} {[%emt 00:09:50]} 18. Bxa8
{[%clk 01:01:19]} {[%emt 00:01:39]} Rxa8 {[%clk 00:30:06]} {[%emt 00:00:08]} 19.
Bxf6 {[%clk 01:00:34]} {[%emt 00:00:54]} Bxf6 {[%clk 00:30:00]} {[%emt
00:00:16]} 20. Ne4 {[%clk 00:58:51]} {[%emt 00:01:52]} Qxe4 {[%clk 00:28:30]}
{[%emt 00:01:40]} 21. Rxc7 {[%clk 00:58:52]} {[%emt 00:00:10]} Qe6 {[%clk
00:22:42]} {[%emt 00:05:58]} 22. Qd3 {[%clk 00:51:49]} {[%emt 00:07:13]} Be5
{[%clk 00:18:00]} {[%emt 00:04:52]} 23. Rd1 {[%clk 00:45:07]} {[%emt 00:06:53]}
d5 {[%clk 00:12:27]} {[%emt 00:05:43]} 24. Qxd5 {[%clk 00:25:55]} {[%emt
00:19:22]} Qxd5 {[%clk 00:10:51]} {[%emt 00:01:46]} 25. Rxd5 {[%clk 00:25:55]}
{[%emt 00:00:10]} Bxc7 {[%clk 00:10:59]} {[%emt 00:00:02]} 26. Rxd7+ {[%clk
00:25:54]} {[%emt 00:00:10]} Kh6 {[%clk 00:10:58]} {[%emt 00:00:11]} 27. Rxc7
{[%clk 00:26:00]} {[%emt 00:00:05]} a6 {[%clk 00:05:36]} {[%emt 00:05:32]} 28.
Kg2 {[%clk 00:23:45]} {[%emt 00:02:25]} fxg3 {[%clk 00:03:08]} {[%emt
00:02:39]} 29. Kxg3 {[%clk 00:22:17]} {[%emt 00:01:37]} Re8 {[%clk 00:02:43]}
{[%emt 00:00:35]} 30. e3 {[%clk 00:22:14]} {[%emt 00:00:13]} Re6 {[%clk
00:02:35]} {[%emt 00:00:18]} 31. h3 {[%clk 00:20:43]} {[%emt 00:01:40]} b5
{[%clk 00:02:04]} {[%emt 00:00:42]} 32. Kf3 {[%clk 00:20:20]} {[%emt 00:00:32]}
Rf6+ {[%clk 00:00:27]} {[%emt 00:01:48]} 33. Ke2 {[%clk 00:20:21]} {[%emt
00:00:09]} g4 {[%clk 00:00:35]} {[%emt 00:00:02]} 34. hxg4 {[%clk 00:20:14]}
{[%emt 00:00:17]} Kg5 {[%clk 00:00:44]} 35. f3 {[%clk 00:20:06]} {[%emt
00:00:18]} Kh4 {[%clk 00:00:53]} {[%emt 00:00:01]} 36. Rc1 {[%clk 00:16:33]}
{[%emt 00:03:42]} Kg3 {[%clk 00:00:48]} {[%emt 00:00:15]} 37. g5 {[%clk
00:16:23]} {[%emt 00:00:21]} Rd6 {[%clk 00:00:29]} {[%emt 00:00:29]} 38. f4
{[%clk 00:14:54]} {[%emt 00:01:38]} Kg4 {[%clk 00:00:26]} {[%emt 00:00:13]} 39.
Rc5 {[%clk 00:12:55]} {[%emt 00:02:08]} Re6 {[%clk 00:00:21]} {[%emt 00:00:15]}
40. Rc7 {[%clk 00:12:13]} {[%emt 00:00:51]} Rd6 {[%clk 00:00:26]} {[%emt
00:00:05]} 41. Rf7 {[%clk 00:11:55]} {[%emt 00:00:29]} a5 {[%clk 00:00:13]}
{[%emt 00:00:24]} 42. Rf6 {[%clk 00:11:28]} {[%emt 00:00:36]} Rd7 {[%clk
00:00:17]} {[%emt 00:00:06]} 43. bxa5 {[%clk 00:10:59]} {[%emt 00:00:39]} Rc7
{[%clk 00:00:24]} {[%emt 00:00:02]} 44. Rxg6 {[%clk 00:10:04]} {[%emt
00:01:05]} Rc2+ {[%clk 00:00:27]} {[%emt 00:00:08]} 45. Kd3 {[%clk 00:10:01]}
{[%emt 00:00:13]} Ra2 {[%clk 00:00:35]} {[%emt 00:00:02]} 46. Rb6 {[%clk
00:08:41]} {[%emt 00:01:29]} Rxa3+ {[%clk 00:00:32]} {[%emt 00:00:14]} 47. Ke4
{[%clk 00:08:38]} {[%emt 00:00:13]} Rxa5 {[%clk 00:00:37]} {[%emt 00:00:06]} 48.
g6 {[%clk 00:08:33]} {[%emt 00:00:14]} 1-0